bitfinex/quotes_ETHUSD_20250924
["timestamp","ask_amount","ask_price","bid_price","bid_amount"]
[1758730805448,10.36032125,4176.9,4176.8,0.002]
[1758730805745,10.36032125,4176.9,4176.8,0.2486]
[1758730805746,6.96120121,4176.9,4176.8,0.2486]
[1758730805952,6.54538121,4176.9,4176.8,0.2486]
[1758730806110,6.54538121,4176.9,4176.8,0.6829]
[1758730806531,6.034,4176.9,4176.8,0.6829]
[1758730807126,4.039,4176.9,4176.8,0.6829]
[1758730807941,4.039,4176.9,4176.8,0.2486]
[1758730808565,4.039,4176.9,4176.8,0.6829]
[1758730808861,4.039,4176.9,4176.8,3.07707736]
[1758730809559,4.039,4176.9,4176.8,0.6829]
[1758730810340,4.039,4176.9,4176.8,0.002]
[1758730810539,4.039,4176.9,4176.8,0.2486]
[1758730810976,4.039,4176.9,4176.8,0.6829]
[1758730811157,4.039,4176.9,4176.8,3.07707736]
[1758730811467,0.001,4177.0,4176.9,2.39412004]
[1758730811767,0.001,4177.0,4176.9,3.07502004]
[1758730816054,0.001,4177.0,4176.9,3.21816124]
[1758730816252,0.001,4177.0,4176.9,3.19422004]
[1758730820151,0.001,4177.0,4176.9,7.23222004]
[1758730820349,0.001,4177.0,4176.9,2.75992004]
[1758730820749,0.001,4177.0,4176.9,11.28285533]
[1758730821015,0.001,4177.0,4176.9,11.37811413]
[1758730821390,0.001,4177.0,4176.9,6.79792004]
[1758730821589,0.001,4177.0,4176.9,7.23602004]
[1758730824914,0.001,4177.0,4176.9,3.19802004]
[1758730825081,0.001,4177.0,4176.9,7.23502004]
[1758730827808,0.001,4177.0,4176.9,6.79692004]
[1758730828778,0.001,4177.0,4176.9,2.51332004]
[1758730829001,0.001,4177.0,4176.9,6.55032004]
[1758730829402,0.6661,4177.0,4176.8,2.39617392]
[1758730829589,0.6651,4176.9,4176.8,0.002]
[1758730829807,0.1202,4177.0,4176.8,0.002]
[1758730830316,0.6651,4176.9,4176.8,0.002]
[1758730831421,3.37714626,4176.9,4176.8,0.002]
[1758730832692,0.98302622,4176.9,4176.8,0.002]
[1758730835433,0.1202,4177.0,4176.8,0.2406]
[1758730835592,0.1202,4177.0,4176.8,2.39613288]
[1758730835593,0.1192,4176.9,4176.8,2.39613288]
[1758730836436,0.1192,4176.9,4176.8,2.63473288]
[1758730836732,0.1192,4176.9,4176.8,0.002]
[1758730837048,0.1192,4176.9,4176.8,2.39617736]
[1758730838517,0.1192,4176.9,4176.8,0.002]
[1758730838724,0.7843,4176.9,4176.8,0.002]
[1758730841470,1.26653,4176.9,4176.8,0.002]
[1758730842220,1.77774959,4176.9,4176.8,0.002]
[1758730842426,4.17186963,4176.9,4176.8,0.002]
[1758730844077,7.96386963,4176.9,4176.8,0.002]
[1758730846155,10.59400741,4176.9,4176.8,0.002]
[1758730846586,10.59400741,4176.9,4176.4,0.002]
[1758730846587,5.57083007,4176.8,4176.4,0.002]
[1758730846728,3.18640666,4176.4,4176.3,1e-08]
[1758730846929,11.41173902,4176.4,4176.3,1e-08]
[1758730847169,11.92295861,4176.4,4176.3,1e-08]
[1758730847467,14.7479402,4176.4,4176.3,1e-08]
[1758730848328,13.89843791,4176.4,4176.3,1e-08]
[1758730852388,14.53388268,4176.4,4176.3,1e-08]
[1758730853588,10.15805261,4176.4,4176.3,1e-08]
[1758730853787,13.55771772,4176.4,4176.3,1e-08]
[1758730854197,12.87481772,4176.4,4176.3,1e-08]
[1758730854357,13.55771772,4176.4,4176.3,1e-08]
[1758730856375,14.99771772,4176.4,4176.3,1e-08]
[1758730859408,15.63312955,4176.4,4176.3,1e-08]
[1758730861116,14.99771772,4176.4,4176.3,1e-08]
[1758730861480,15.63312955,4176.4,4176.3,1e-08]
[1758730862996,14.99771772,4176.4,4176.3,1e-08]
[1758730863577,16.18605008,4176.4,4176.3,1e-08]
[1758730863785,16.18455236,4176.4,4176.3,1e-08]
[1758730865309,15.33654779,4176.4,4176.3,1e-08]
[1758730866735,24.81527486,4176.4,4176.3,1e-08]
[1758730867405,14.37162382,4176.4,4176.3,1e-08]
[1758730867607,23.00154479,4176.4,4176.3,1e-08]
[1758730867920,23.00154479,4176.4,4176.3,0.22840001]
[1758730868137,23.79354479,4176.4,4176.3,0.22840001]
[1758730868539,23.79354479,4176.4,4176.3,1e-08]
[1758730868684,24.47504479,4176.4,4176.3,1e-08]
[1758730868884,25.32385089,4176.4,4176.3,1e-08]
[1758730869089,20.60435089,4176.4,4176.3,1e-08]
[1758730869320,25.78754479,4176.4,4176.3,1e-08]
[1758730869790,26.63732406,4176.4,4176.3,1e-08]
[1758730870402,25.78754479,4176.4,4176.3,1e-08]
[1758730871701,27.06181806,4176.4,4176.3,1e-08]
[1758730873091,26.48704479,4176.4,4175.9,0.002]
[1758730873346,13.27072707,4176.0,4175.9,0.002]
[1758730873495,17.81605654,4176.0,4175.9,0.002]
[1758730873694,20.21069255,4176.0,4175.9,0.2428]
[1758730876023,19.41869255,4176.0,4175.9,0.2428]
[1758730878628,0.50832947,4176.0,4175.9,0.2428]
[1758730878816,4.037,4176.0,4175.9,0.6809]
[1758730879130,0.50932947,4176.4,4176.1,2.39457867]
[1758730879330,0.50932947,4176.4,4175.9,3.38333994]
[1758730879331,4.037,4176.3,4176.2,3.07339877]
[1758730879554,3.5989,4176.3,4176.2,0.6789]
[1758730880049,0.001,4176.4,4176.3,2.39446399]
[1758730880211,0.1202,4176.4,4176.3,2.65920862]
[1758730885019,0.001,4176.4,4176.3,12.13793569]
[1758730885238,0.001,4176.4,4176.3,12.23319106]
[1758730886150,0.001,4176.4,4176.3,2.75446399]
[1758730886711,0.001,4176.4,4176.3,0.2408]
[1758730887335,0.001,4176.4,4176.3,2.63526399]
[1758730888816,0.001,4176.4,4176.3,0.2408]
[1758730889458,0.001,4176.4,4176.3,2.63526399]
[1758730893383,0.001,4176.4,4176.3,6.67026399]
[1758730893967,0.001,4176.4,4175.9,2.6374718]
[1758730894169,0.001,4176.4,4176.2,2.39452053]
[1758730894469,0.001,4176.4,4175.9,2.6374718]
[1758730894470,0.001,4176.4,4176.0,2.63543601]
[1758730894682,0.001,4176.4,4176.0,0.2408]
[1758730894854,0.001,4176.4,4176.2,2.39447695]
[1758730895433,0.001,4176.4,4176.3,2.63526399]
[1758730896149,0.001,4176.4,4176.3,0.2408]
[1758730896769,0.1202,4176.4,4176.3,2.63526399]
[1758730897567,0.001,4176.4,4176.3,2.63526399]
[1758730899551,0.001,4176.4,4176.3,0.2408]
[1758730899754,0.001,4176.4,4176.3,2.63526399]
[1758730901314,0.7005,4176.4,4175.9,0.002]
[1758730901485,0.1192,4176.1,4175.9,2.39668909]
[1758730901774,0.1192,4176.1,4175.9,0.002]
[1758730902439,0.1192,4176.1,4176.0,0.2364]
[1758730902879,0.1192,4176.1,4176.0,2.63103601]
[1758730903076,0.1192,4176.1,4176.0,0.2364]
[1758730903241,0.001,4176.4,4176.0,0.2364]
[1758730903440,0.1202,4176.4,4176.3,10.57829646]
[1758730903662,0.001,4176.4,4176.3,10.57829646]
[1758730903841,0.001,4176.4,4176.3,10.81469646]
[1758730904953,0.001,4176.4,4175.9,0.002]
[1758730905189,0.1202,4176.4,4176.0,4.034]
[1758730905488,0.1202,4176.4,4176.1,2.63096123]
[1758730905974,0.1202,4176.4,4176.2,2.3945084]
[1758730906163,0.1202,4176.4,4176.1,8.42023247]
[1758730906366,0.1202,4176.4,4176.1,10.8147931]
[1758730906576,0.1202,4176.4,4176.2,2.39451096]
[1758730906780,0.1202,4176.4,4176.2,2.63091096]
[1758730906950,0.1202,4176.4,4176.2,0.2364]
[1758730907579,0.4282,4176.3,4176.0,6.42762807]
[1758730907775,0.4282,4176.3,4176.0,4.033]
[1758730908074,0.1202,4176.4,4176.3,2.39446399]
[1758730908279,0.1202,4176.4,4176.2,10.57833857]
[1758730908480,0.1202,4176.4,4176.2,8.42023247]
[1758730909199,0.1202,4176.4,4176.2,8.18383247]
[1758730910067,0.4282,4176.3,4176.0,4.033]
[1758730910275,0.1202,4176.4,4176.0,4.2694]
[1758730910474,0.1202,4176.4,4176.1,2.39457133]
[1758730910675,0.1202,4176.4,4176.0,6.6640306]
[1758730910898,0.5484,4176.4,4176.0,6.6640306]
[1758730911096,0.5484,4176.4,4176.0,2.6310306]
[1758730911287,0.6541,4176.3,4175.9,0.002]
[1758730911464,0.1192,4176.0,4175.9,0.002]
[1758730911865,0.1192,4176.0,4175.9,2.39669335]
[1758730912278,0.1192,4176.0,4175.9,2.63309335]
[1758730914697,0.1192,4176.0,4175.9,2.39669335]
[1758730915198,0.1192,4176.0,4175.9,0.002]
[1758730915584,0.1192,4176.0,4175.9,2.39669335]
[1758730917281,0.1192,4176.0,4175.9,0.002]
[1758730917478,3.16793601,4176.0,4175.9,0.002]
[1758730917683,5.14536618,4176.0,4175.9,0.002]
[1758730917863,5.65671939,4176.0,4175.9,0.002]
[1758730922520,3.67928922,4176.0,4175.9,0.002]
[1758730922726,3.16793601,4176.0,4175.9,0.002]
[1758730923216,0.1192,4176.0,4175.9,0.002]
[1758730923417,3.17573601,4176.0,4175.9,0.002]
[1758730923874,0.1192,4176.0,4175.9,0.002]
[1758730924074,2.51383601,4176.0,4175.9,0.002]
[1758730924306,4.15579721,4176.0,4175.9,0.002]
[1758730924817,0.1192,4176.0,4175.9,0.002]
[1758730925110,0.1192,4176.0,4175.9,0.2331]
[1758730925481,0.1192,4176.0,4175.9,0.002]
[1758730926882,0.5502,4176.0,4175.9,0.002]
[1758730927284,0.1192,4176.0,4175.9,0.002]
[1758730927718,0.5502,4176.0,4175.9,0.002]
[1758730928215,1.47056347,4176.0,4175.9,0.002]
[1758730928413,0.1192,4176.0,4175.9,0.002]
[1758730928617,0.1192,4176.0,4175.9,0.2331]
[1758730928822,0.1192,4176.0,4175.9,2.62779335]
[1758730929033,6.028,4176.2,4176.0,2.39461171]
[1758730929397,4.033,4176.2,4176.1,10.80951114]
[1758730931217,4.033,4176.2,4176.1,8.41493247]
[1758730931450,4.033,4176.2,4176.1,2.62567867]
[1758730931733,4.033,4176.2,4176.1,10.80951114]
[1758730932511,4.033,4176.2,4176.1,8.41493247]
[1758730932733,0.001,4176.3,4176.1,8.41493247]
[1758730932906,0.001,4176.3,4176.1,10.80949054]
[1758730933106,0.001,4176.3,4176.2,2.39452133]
[1758730933593,0.001,4176.3,4176.2,2.62412133]
[1758730933797,0.001,4176.3,4176.2,0.2296]
[1758730934603,0.001,4176.3,4175.9,0.002]
[1758730934827,0.1192,4176.1,4175.9,2.62627122]
[1758730935014,0.1192,4176.1,4176.0,2.62423601]
[1758730939953,0.1192,4176.1,4176.0,0.2296]
[1758730940102,0.1192,4176.1,4175.9,0.002]
[1758730940298,0.1192,4176.1,4175.9,2.39666359]
[1758730940704,3.08403601,4176.0,4175.9,0.002]
[1758730940899,5.11012369,4176.0,4175.9,0.002]
[1758730943006,7.10512369,4176.0,4175.9,0.002]
[1758730944442,18.28895616,4176.0,4175.9,0.002]
[1758730944611,19.14166235,4176.0,4175.9,0.002]
[1758730944807,20.58166235,4176.0,4175.9,0.002]
[1758730945024,12.39782988,4176.0,4175.9,0.002]
[1758730945938,20.58166235,4176.0,4175.9,0.002]
[1758730946460,20.20423796,4176.0,4175.9,0.002]
[1758730946662,20.20412677,4176.0,4175.9,0.002]
[1758730947761,21.05683296,4176.0,4175.9,0.002]
[1758730948362,12.87300049,4176.0,4175.9,0.002]
[1758730948566,12.87300049,4176.0,4175.4,0.002]
[1758730948567,3.18692276,4175.5,4175.4,0.002]
[1758730948776,10.21792276,4175.5,4175.4,0.002]
[1758730948974,11.41777565,4175.5,4175.4,0.002]
[1758730949277,11.51383701,4175.5,4175.4,0.002]
[1758730949476,12.15130164,4175.5,4175.4,0.002]
[1758730949648,13.90512316,4175.5,4175.4,0.002]
[1758730950730,13.66642316,4175.5,4175.4,0.002]
[1758730950935,13.8090618,4175.5,4175.4,0.002]
[1758730951360,13.5703618,4175.5,4175.4,0.002]
[1758730951570,0.51045289,4175.5,4175.4,0.2316]
[1758730951767,4.031,4175.5,4175.4,0.2316]
[1758730952734,6.42592276,4175.5,4175.4,0.2316]
[1758730953190,7.66862276,4175.5,4175.4,0.002]
[1758730953336,7.90732276,4175.5,4175.4,0.002]
[1758730953666,5.26071424,4175.5,4175.4,0.002]
[1758730953853,6.42592276,4175.5,4175.4,0.2316]
[1758730954254,6.42592276,4175.5,4175.4,0.002]
[1758730954660,4.031,4175.5,4175.4,0.002]
[1758730954857,6.42592276,4175.5,4175.4,0.002]
[1758730955158,1.995,4175.7,4175.4,0.2316]
[1758730955654,4.031,4175.6,4175.4,0.2316]
[1758730957235,4.031,4176.0,4175.6,2.3948654]
[1758730957434,0.1192,4175.6,4175.5,2.39491043]
[1758730958074,0.1192,4175.6,4175.5,2.62451043]
[1758730960240,0.1192,4175.6,4175.5,0.2296]
[1758730961154,0.1192,4175.6,4175.4,0.002]
[1758730961360,0.1192,4175.6,4175.5,0.2296]
[1758730963105,0.1192,4175.6,4175.5,2.62452276]
[1758730964699,0.1192,4175.6,4175.5,0.2296]
[1758730964902,0.1192,4175.6,4175.5,2.62452276]
[1758730968858,0.1192,4175.6,4175.5,0.2296]
[1758730969070,0.1192,4175.6,4175.5,2.62452276]
[1758730973690,0.001,4175.8,4175.7,2.39480805]
[1758730973892,0.001,4175.8,4175.7,6.44775613]
[1758730974207,0.001,4175.8,4175.7,6.67160805]
[1758730976825,0.001,4175.8,4175.7,4.2768]
[1758730977124,0.001,4175.8,4175.7,6.67160805]
[1758730978810,0.001,4175.8,4175.4,0.1212]
[1758730978999,0.4431,4175.7,4175.6,2.39486012]
[1758730980214,0.4431,4175.7,4175.5,4.029]
[1758730980215,0.1202,4175.8,4175.7,2.39480805]
[1758730980413,0.5731,4175.8,4175.6,2.39485152]
[1758730980619,0.1202,4175.8,4175.4,2.39693616]
[1758730980914,0.1202,4175.8,4175.7,2.39480805]
[1758730981217,0.1202,4175.8,4175.5,0.2346]
[1758730981391,0.5731,4175.8,4175.6,2.3948512]
[1758730981801,0.1202,4175.8,4175.7,2.39480805]
[1758730982214,0.1202,4175.8,4175.7,2.62940805]
[1758730982408,0.1202,4175.8,4175.7,2.39480805]
[1758730982714,0.1202,4175.8,4175.7,2.62940805]
[1758730982915,0.1202,4175.8,4175.7,2.65335613]
[1758730983121,0.001,4175.8,4175.7,2.62940805]
[1758730983819,0.001,4175.8,4175.7,6.65740805]
[1758730984719,0.4539,4175.8,4175.7,4.028]
[1758730984936,0.4539,4175.8,4175.7,6.42280805]
[1758730985506,0.001,4175.8,4175.7,6.42280805]
[1758730987232,0.001,4175.8,4175.7,6.65740805]
[1758730990023,0.001,4175.8,4175.7,2.62940805]
[1758730990236,0.001,4175.8,4175.7,6.65740805]
[1758730990964,0.001,4175.8,4175.7,16.13031387]
[1758730992338,0.001,4175.8,4175.7,19.13031387]
[1758730992550,0.001,4175.8,4175.7,19.24951387]
[1758730994476,0.001,4175.8,4175.7,9.77560805]
[1758730996769,0.001,4176.3,4176.2,2.39452133]
[1758730996968,0.001,4176.8,4176.3,14.86736981]
[1758730997352,1e-08,4176.9,4176.8,14.86708318]
[1758730997672,1e-08,4176.9,4176.8,18.89408318]
[1758730997972,1e-08,4176.9,4176.8,19.14158318]
[1758730998169,1e-08,4176.9,4176.8,19.59831023]
[1758730999246,1e-08,4176.9,4176.8,19.59731023]
[1758730999433,1e-08,4176.9,4176.8,21.59131023]
[1758730999839,0.02,4177.9,4177.0,0.792]
[1758731000157,0.02,4177.9,4177.8,14.8665101]
[1758731000348,0.02,4177.9,4177.8,21.12596223]
[1758731000547,0.02,4177.9,4177.8,21.37346223]
[1758731002638,0.02,4177.9,4177.8,5.63305641]
[1758731003069,0.02,4177.9,4177.8,9.65905641]
[1758731003463,0.7298,4177.9,4177.8,9.65805641]
[1758731003666,0.7298,4177.9,4177.8,9.41860428]
[1758731003667,0.02,4177.9,4177.8,9.41860428]
[1758731004068,0.02,4177.9,4177.8,9.66610428]
[1758731006502,0.4852,4178.9,4178.8,2.39303149]
[1758731006799,0.4852,4178.9,4178.8,6.41803149]
[1758731007006,0.7298,4178.9,4178.8,6.41803149]
[1758731008102,0.7298,4178.9,4178.8,2.39303149]
[1758731008403,0.7298,4178.9,4178.8,6.41803149]
[1758731009527,0.7298,4178.9,4178.8,4.024]
[1758731009875,0.7298,4178.9,4178.8,6.41703149]
[1758731011419,0.7298,4178.9,4178.8,4.024]
[1758731011573,0.7298,4178.9,4177.6,0.9573]
[1758731011778,0.7098,4178.8,4178.0,2.3934897]
[1758731011986,0.02,4178.9,4178.2,2.39336614]
[1758731012307,0.02,4178.9,4177.7,1.994]
[1758731012308,0.7098,4178.7,4178.3,6.41731421]
[1758731012614,0.7098,4178.6,4178.4,4.024]
[1758731012910,0.7098,4178.5,4178.4,6.41721588]
[1758731013072,0.7098,4178.5,4178.4,4.024]
[1758731013581,0.7098,4178.5,4178.4,6.41726057]
[1758731013770,0.7098,4178.5,4178.4,4.024]
[1758731014108,0.7098,4178.5,4178.4,6.41726057]
[1758731014321,0.7098,4178.5,4178.4,4.024]
[1758731014523,0.7098,4178.5,4178.4,6.41726057]
[1758731014685,0.7098,4178.5,4178.4,2.39326057]
[1758731014884,0.7098,4178.5,4178.4,6.41726057]
[1758731015428,0.7098,4178.5,4178.4,4.024]
[1758731015917,0.7098,4178.5,4178.4,6.41726057]
[1758731016881,0.7098,4178.5,4178.4,4.024]
[1758731017520,0.7098,4178.5,4178.4,6.41726057]
[1758731018018,0.02,4178.9,4178.4,6.41726057]
[1758731018319,0.1192,4178.6,4178.5,2.41713533]
[1758731018712,0.5844,4178.6,4178.5,2.41713533]
[1758731018909,0.829,4178.6,4178.5,2.3932033]
[1758731019219,0.829,4178.6,4178.4,4.024]
[1758731019390,0.829,4178.6,4178.5,2.3932033]
[1758731019921,0.5844,4178.6,4178.5,2.3932033]
[1758731021184,0.1192,4178.6,4178.5,2.3932033]
[1758731021384,0.4852,4178.9,4178.8,2.39303149]
[1758731021589,0.1192,4178.8,4178.7,2.39307578]
[1758731021823,0.5522,4178.8,4178.6,6.41613584]
[1758731022023,0.433,4178.7,4178.6,6.41613584]
[1758731022449,0.3478,4178.8,4178.7,2.39308875]
[1758731022656,0.7808,4178.8,4178.7,2.39308875]
[1758731023324,0.1192,4178.8,4178.7,2.39308875]
[1758731023852,0.5522,4178.8,4178.7,2.39308875]
[1758731024242,0.7808,4178.8,4178.7,4.023]
[1758731025766,0.7808,4178.8,4178.7,6.41608875]
[1758731027062,0.1192,4178.8,4178.7,6.41608875]
[1758731027259,0.1192,4178.8,4178.7,6.65388875]
[1758731027857,0.1192,4178.8,4178.7,15.28572675]
[1758731028057,0.02,4178.9,4178.8,2.39303149]
[1758731028356,0.02,4178.9,4178.8,2.6547618]
[1758731029672,0.02,4178.9,4178.8,2.7739618]
[1758731029970,0.02,4178.9,4178.8,14.94549031]
[1758731030155,0.02,4178.9,4178.8,6.77203149]
[1758731030344,0.02,4178.9,4178.8,14.94549031]
[1758731030736,0.02,4178.9,4178.8,6.53423149]
[1758731032450,0.02,4178.9,4178.8,14.70769031]
[1758731035361,0.02,4178.9,4178.8,14.94549031]
[1758731035779,0.02,4178.9,4178.8,6.77203149]
[1758731035961,0.02,4178.9,4178.8,14.94549031]
[1758731037842,0.02,4178.9,4178.8,10.92349031]
[1758731038043,0.02,4178.9,4178.8,10.68569031]
[1758731038273,0.02,4178.9,4178.8,14.94449031]
[1758731038577,0.02,4178.9,4178.8,2.51223149]
[1758731038777,0.02,4178.9,4178.8,6.53323149]
[1758731038942,0.6816,4178.9,4178.8,6.53323149]
[1758731039272,0.02,4178.9,4178.8,6.53323149]
[1758731041545,0.02,4178.9,4178.8,6.75873149]
[1758731050178,0.7019,4178.9,4178.4,1.993]
[1758731050377,0.6819,4178.8,4178.5,4.02]
[1758731050570,0.02,4178.9,4178.5,4.02]
[1758731050757,0.02,4178.9,4178.5,6.41314904]
[1758731050962,0.02,4178.9,4178.6,4.02]
[1758731051152,0.6819,4178.8,4178.6,4.02]
[1758731051358,0.6819,4178.7,4177.8,1.993]
[1758731051598,0.6819,4178.6,4178.1,2.39338664]
[1758731051818,0.1192,4178.3,4178.2,4.02]
[1758731051997,0.802,4178.3,4177.9,2.39353592]
[1758731052195,0.1192,4178.1,4178.0,4.02]
[1758731052397,0.802,4178.1,4178.0,6.4134897]
[1758731052622,0.802,4178.1,4178.0,4.02]
[1758731052972,0.802,4178.1,4178.0,6.4134897]
[1758731053181,0.2262,4178.6,4178.0,6.64988475]
[1758731053472,0.4566,4178.5,4178.4,2.39326057]
[1758731053699,0.4566,4178.5,4178.4,6.41326057]
[1758731053900,0.6828,4178.5,4178.4,4.02]
[1758731054378,0.6828,4178.5,4178.4,6.41326057]
[1758731054721,0.6828,4178.5,4178.4,4.02]
[1758731056313,0.6828,4178.5,4178.1,2.39342886]
[1758731056610,0.6828,4178.4,4178.2,6.41336513]
[1758731056771,0.1192,4178.6,4178.2,4.02]
[1758731056976,0.6828,4178.5,4178.2,4.02]
[1758731057174,0.6828,4178.4,4178.3,4.02]
[1758731057409,0.802,4178.4,4178.3,4.02]
[1758731058310,0.802,4178.4,4178.2,4.02]
[1758731058477,0.6828,4178.3,4178.2,4.02]
[1758731058673,0.6828,4178.3,4177.5,2.63017289]
[1758731059014,0.1192,4178.0,4177.6,4.02]
[1758731059321,0.4566,4177.9,4177.8,2.39359946]
[1758731060805,0.2262,4177.7,4177.3,0.409]
[1758731060996,0.6828,4177.6,4177.1,2.39396209]
[1758731061193,0.6828,4177.5,4177.2,4.02]
[1758731061397,0.6828,4177.4,4177.1,4.02]
[1758731061597,0.6828,4177.3,4177.1,4.02]
[1758731061796,0.6828,4177.2,4177.1,4.02]
[1758731062390,0.4566,4177.2,4177.1,4.02]
[1758731066516,0.6828,4177.2,4177.1,4.02]
[1758731067610,0.4566,4177.2,4177.1,6.41400541]
[1758731067934,0.4566,4177.2,4177.1,4.02]
[1758731068937,0.4566,4177.8,4177.1,4.2564]
[1758731069135,0.9870034,4177.8,4177.1,12.45379887]
[1758731069438,0.4566,4178.1,4177.7,10.56710153]
[1758731069739,0.4566,4178.0,4177.8,2.39360008]
[1758731069926,0.4566,4178.0,4177.7,6.65004082]
[1758731070123,0.4566,4178.0,4177.8,2.39360428]
[1758731070565,0.1192,4177.8,4177.7,6.65006158]
[1758731070910,0.1192,4177.8,4177.7,4.2564]
[1758731071210,0.1192,4177.8,4177.7,6.65006158]
[1758731071428,0.1192,4177.8,4177.7,4.2564]
[1758731071837,0.1192,4177.8,4177.5,2.39372166]
[1758731071838,0.802,4177.8,4177.5,2.39372166]
[1758731072038,0.802,4177.8,4177.6,4.02]
[1758731072353,0.1192,4177.8,4177.7,6.41366158]
[1758731073656,0.1192,4177.8,4177.7,4.02]
[1758731073848,0.5758,4177.8,4177.7,4.02]
[1758731074853,0.1192,4177.8,4177.7,6.41366158]
[1758731075154,0.1192,4177.8,4177.7,4.02]
[1758731075356,0.802,4177.8,4177.7,4.02]
[1758731075515,0.802,4177.8,4177.1,0.002]
[1758731075719,0.1192,4177.5,4177.2,4.02]
[1758731075917,0.1192,4177.5,4177.2,4.2564]
[1758731076341,0.1192,4177.5,4177.4,2.39383348]
[1758731076542,0.1192,4177.5,4177.4,6.41383348]
[1758731076820,0.1192,4177.5,4177.4,6.65023348]
[1758731077570,0.1192,4177.5,4177.4,14.8236923]
[1758731078822,0.001,4178.5,4178.1,2.39340519]
[1758731079023,0.1192,4178.1,4178.0,2.3934897]
[1758731079943,0.1192,4178.1,4177.9,12.19345882]
[1758731080143,0.4566,4178.0,4177.4,0.3556]
[1758731080347,0.4566,4178.0,4177.6,2.39370059]
[1758731080348,0.1192,4177.9,4177.6,2.39370059]
[1758731080546,0.3454,4177.9,4177.7,6.41265629]
[1758731080747,0.1192,4177.9,4177.7,6.41265629]
[1758731080920,0.1192,4177.9,4177.8,2.39360428]
[1758731081120,0.1192,4177.9,4177.8,2.63000428]
[1758731081726,0.1192,4177.9,4177.8,2.39360428]
[1758731082448,0.1192,4177.9,4177.7,6.41264544]
[1758731082649,0.1192,4177.9,4177.7,4.019]
[1758731082955,0.4661,4177.8,4177.7,4.019]
[1758731083158,0.1192,4177.9,4177.7,4.019]
[1758731083735,0.7122,4177.8,4177.2,0.1192]
[1758731083935,0.1192,4177.6,4177.3,2.39387952]
[1758731084142,0.7122,4177.5,4177.4,4.019]
[1758731084326,0.4661,4177.5,4177.4,6.41283348]
[1758731084662,0.1192,4177.6,4177.5,2.39377618]
[1758731084861,0.1192,4177.6,4177.5,2.63467618]
[1758731085358,0.1192,4177.6,4177.3,0.2409]
[1758731085585,0.1192,4177.6,4177.4,4.019]
[1758731085927,0.1192,4177.6,4177.5,2.39377618]
[1758731086354,0.1192,4177.6,4177.5,2.63467618]
[1758731087466,0.1192,4177.6,4177.5,2.39377618]
[1758731088464,0.1192,4177.6,4177.4,4.019]
[1758731088670,0.4661,4177.5,4177.4,6.4128224]
[1758731089473,0.3653,4177.6,4177.5,2.39377618]
[1758731089474,0.1192,4177.6,4177.5,2.39377618]
[1758731089835,0.1192,4177.6,4177.5,2.63467618]
[1758731090757,0.1192,4177.6,4177.5,0.2409]
[1758731090961,0.1192,4177.6,4177.5,2.39377618]
[1758731091536,0.1192,4177.6,4177.5,2.63467618]
[1758731092265,0.1192,4177.6,4177.5,0.2409]
[1758731092449,0.1192,4177.6,4177.5,2.63467618]
[1758731093251,0.1192,4177.6,4177.5,0.2409]
[1758731093453,0.1192,4177.6,4177.5,2.63467618]
[1758731094543,0.1192,4177.6,4177.5,0.2409]
[1758731094755,0.1192,4177.6,4177.5,2.39377618]
[1758731095353,0.1192,4177.6,4177.5,2.63467618]
[1758731096248,0.1192,4177.6,4177.5,2.39377618]
[1758731098863,0.1192,4177.6,4177.5,6.41177618]
[1758731099251,0.1192,4177.6,4177.5,20.91177618]
[1758731100256,0.5888,4177.6,4177.5,14.5]
[1758731100621,0.8179,4177.6,4177.3,0.002]
[1758731100913,0.4696,4177.5,4177.3,0.002]
[1758731101072,0.4696,4177.5,4177.3,2.39588339]
[1758731101273,0.6987,4177.4,4177.3,2.39588339]
[1758731102060,0.001,4177.9,4177.3,0.002]
[1758731102375,0.1192,4177.8,4177.4,4.018]
[1758731102579,0.1192,4177.8,4177.7,2.39366158]
[1758731102777,0.001,4177.9,4177.8,2.39360428]
[1758731103176,0.001,4177.9,4177.8,2.62840428]
[1758731103395,0.001,4177.9,4177.8,17.12840428]
[1758731110152,0.001,4177.9,4177.8,0.2348]
[1758731110445,0.001,4177.9,4177.8,2.39360428]
[1758731110612,0.001,4177.9,4177.8,16.89360428]
[1758731110801,0.001,4177.9,4177.8,17.12840428]
[1758731111822,0.001,4177.9,4177.8,16.89360428]
[1758731112846,0.001,4177.9,4177.3,0.2311]
[1758731113165,3.792,4177.7,4177.3,0.002]
[1758731113365,2.39394809,4177.2,4177.1,0.002]
[1758731113663,2.87272779,4177.2,4176.9,0.002]
[1758731113840,0.792,4177.1,4176.9,0.002]
[1758731114006,3.18606272,4177.0,4176.9,0.002]
[1758731114210,6.18606272,4177.0,4176.9,0.002]
[1758731114410,7.38598656,4177.0,4176.9,0.002]
[1758731114611,9.08638816,4177.0,4176.9,0.002]
[1758731115612,18.54928719,4177.0,4176.9,0.002]
[1758731115843,9.08638816,4177.0,4176.9,0.002]
[1758731116064,2.90032544,4177.0,4176.9,0.002]
[1758731116274,3.0,4177.5,4176.9,0.002]
[1758731116473,0.4545,4177.0,4176.9,0.002]
[1758731116833,0.4545,4177.0,4176.9,14.502]
[1758731117040,0.6884,4177.4,4176.9,14.502]
[1758731117367,0.6884,4177.3,4176.9,14.502]
[1758731117570,2.5996677,4177.6,4177.3,2.39387292]
[1758731117891,0.001,4177.9,4177.4,0.2368]
[1758731118089,0.001,4177.9,4177.6,2.39371888]
[1758731118442,0.001,4177.9,4177.7,14.7368]